[Event "Early-Titled-Tuesday-Blitz-November-28-2023"]
[Site "Chess.com"]
[Date "2023.11.28"]
[Round "6"]
[White "TigrVShlyape"]
[Black "nochewycandy"]
[Result "1-0"]
[WhiteElo "2972"]
[BlackElo "2763"]
[TimeControl "180+1"]
[EndTime "9:13:18 PST"]
[Termination "TigrVShlyape won by resignation"]

1. d4 {[%clk 0:03:00.9]} 1... d5 {[%clk 0:02:59.5]} 2. Bf4 {[%clk 0:03:00.1]}
2... c5 {[%clk 0:03:00.1]} 3. e3 {[%clk 0:02:59.9]} 3... Nc6 {[%clk 0:02:59.8]}
4. c3 {[%clk 0:02:59.8]} 4... Bf5 {[%clk 0:02:58.4]} 5. Nd2 {[%clk 0:02:58.1]}
5... e6 {[%clk 0:02:56.4]} 6. Qb3 {[%clk 0:02:50.8]} 6... Qd7 {[%clk 0:02:56]}
7. a4 {[%clk 0:02:48.5]} 7... Nf6 {[%clk 0:02:51.8]} 8. Ngf3 {[%clk 0:02:43.9]}
8... a6 {[%clk 0:02:50]} 9. Be2 {[%clk 0:02:39.5]} 9... c4 {[%clk 0:02:47.1]}
10. Qa2 {[%clk 0:02:39]} 10... Be7 {[%clk 0:02:35.6]} 11. O-O {[%clk 0:02:38]}
11... O-O {[%clk 0:02:35.6]} 12. b3 {[%clk 0:02:36.4]} 12... cxb3 {[%clk
0:02:29.5]} 13. Qxb3 {[%clk 0:02:33.9]} 13... Rfc8 {[%clk 0:02:24.9]} 14. Rfc1
{[%clk 0:02:33]} 14... Ne4 {[%clk 0:01:58.4]} 15. Nxe4 {[%clk 0:02:30.5]} 15...
Bxe4 {[%clk 0:01:59.3]} 16. Nd2 {[%clk 0:02:29.3]} 16... Bg6 {[%clk 0:01:57.8]}
17. h3 {[%clk 0:02:26.3]} 17... Bd6 {[%clk 0:01:53.3]} 18. Bxd6 {[%clk
0:02:25.1]} 18... Qxd6 {[%clk 0:01:54.2]} 19. a5 {[%clk 0:02:24.7]} 19... Rc7
{[%clk 0:01:49.6]} 20. c4 {[%clk 0:02:23.6]} 20... dxc4 {[%clk 0:01:48.3]} 21.
Nxc4 {[%clk 0:02:21.5]} 21... Qe7 {[%clk 0:01:48.9]} 22. Nb6 {[%clk 0:02:08.8]}
22... Rd8 {[%clk 0:01:45]} 23. Bf3 {[%clk 0:01:28]} 23... Nxa5 {[%clk
0:01:15.3]} 24. Rxc7 {[%clk 0:01:24.9]} 24... Nxb3 {[%clk 0:01:15.8]} 25. Rxe7
{[%clk 0:01:24]} 25... Nxa1 {[%clk 0:01:16.4]} 26. Rxb7 {[%clk 0:01:16.9]} 26...
a5 {[%clk 0:01:10.4]} 27. Ra7 {[%clk 0:01:13.7]} 27... Nb3 {[%clk 0:01:10.3]}
28. Bd1 {[%clk 0:01:08.4]} 28... Nd2 {[%clk 0:01:07.1]} 29. Rxa5 {[%clk
0:01:04.7]} 29... Rb8 {[%clk 0:01:06.1]} 30. Ra8 {[%clk 0:00:59]} 30... Rxa8
{[%clk 0:01:06]} 31. Nxa8 {[%clk 0:00:59.9]} 31... Kf8 {[%clk 0:01:01.1]} 32.
Nb6 {[%clk 0:00:58.4]} 32... Ke7 {[%clk 0:01:00.6]} 33. f3 {[%clk 0:00:57.6]}
33... Nb1 {[%clk 0:00:55.5]} 34. Na4 {[%clk 0:00:55.4]} 34... Na3 {[%clk
0:00:49.8]} 35. Be2 {[%clk 0:00:45.7]} 35... Nc2 {[%clk 0:00:50]} 36. Kf2 {[%clk
0:00:45.5]} 36... Nb4 {[%clk 0:00:49.1]} 37. e4 {[%clk 0:00:42.4]} 37... Kd6
{[%clk 0:00:47.8]} 38. Bd1 {[%clk 0:00:20.6]} 38... f6 {[%clk 0:00:46]} 39. Ke3
{[%clk 0:00:20.2]} 39... Be8 {[%clk 0:00:44.5]} 40. Nc3 {[%clk 0:00:18]} 40...
Bc6 {[%clk 0:00:33.6]} 41. h4 {[%clk 0:00:17.9]} 41... h6 {[%clk 0:00:32.2]} 42.
g3 {[%clk 0:00:16.4]} 42... g5 {[%clk 0:00:31.7]} 43. Bb3 {[%clk 0:00:15.7]}
43... Be8 {[%clk 0:00:28.5]} 44. f4 {[%clk 0:00:15.4]} 44... Bg6 {[%clk
0:00:26.1]} 45. Nb5+ {[%clk 0:00:11.1]} 45... Ke7 {[%clk 0:00:25.7]} 46. Nc7
{[%clk 0:00:10.2]} 46... Kd6 {[%clk 0:00:23.2]} 47. Nxe6 {[%clk 0:00:08.8]}
47... Nc2+ {[%clk 0:00:23.9]} 48. Bxc2 {[%clk 0:00:08.4]} 1-0

[Event "Early-Titled-Tuesday-Blitz-November-28-2023"]
[Site "Chess.com"]
[Date "2023.11.28"]
[Round "6"]
[White "Pendos666"]
[Black "FoxOnTheRun97"]
[Result "1-0"]
[WhiteElo "2804"]
[BlackElo "2573"]
[TimeControl "180+1"]
[EndTime "9:13:18 PST"]
[Termination "Pendos666 won by checkmate"]

1. e4 {[%clk 0:03:00.9]} 1... c6 {[%clk 0:02:59.8]} 2. d4 {[%clk 0:03:00.7]}
2... d5 {[%clk 0:03:00.2]} 3. e5 {[%clk 0:03:01.1]} 3... Bf5 {[%clk 0:02:59.5]}
4. h4 {[%clk 0:03:00.8]} 4... h5 {[%clk 0:02:55.4]} 5. c4 {[%clk 0:03:00.4]}
5... e6 {[%clk 0:02:53.7]} 6. Nc3 {[%clk 0:02:59.8]} 6... Ne7 {[%clk 0:02:52.1]}
7. Bg5 {[%clk 0:02:54.9]} 7... Qb6 {[%clk 0:02:47.7]} 8. Qd2 {[%clk 0:02:51.9]}
8... dxc4 {[%clk 0:02:36.2]} 9. Bxc4 {[%clk 0:02:50.7]} 9... Nd5 {[%clk
0:02:35.5]} 10. Nge2 {[%clk 0:02:45.7]} 10... Qb4 {[%clk 0:02:09]} 11. Bd3
{[%clk 0:02:34]} 11... Bxd3 {[%clk 0:02:03.1]} 12. Qxd3 {[%clk 0:02:33.9]} 12...
Nd7 {[%clk 0:01:53]} 13. O-O {[%clk 0:02:31.4]} 13... Be7 {[%clk 0:01:38.9]} 14.
a3 {[%clk 0:02:26.1]} 14... Qa5 {[%clk 0:01:36.5]} 15. b4 {[%clk 0:02:11.3]}
15... Qc7 {[%clk 0:01:21.9]} 16. Nxd5 {[%clk 0:02:04.9]} 16... cxd5 {[%clk
0:01:13.4]} 17. Bxe7 {[%clk 0:02:04.3]} 17... Kxe7 {[%clk 0:01:13.9]} 18. Rfc1
{[%clk 0:02:03.4]} 18... Qb6 {[%clk 0:01:13.4]} 19. Qg3 {[%clk 0:02:02.4]} 19...
g6 {[%clk 0:01:05.8]} 20. Qg5+ {[%clk 0:02:01.5]} 20... Kf8 {[%clk 0:01:04.9]}
21. Rc3 {[%clk 0:01:54.3]} 21... Kg7 {[%clk 0:00:59.9]} 22. Rac1 {[%clk
0:01:51.6]} 22... Rad8 {[%clk 0:00:42.6]} 23. Rf3 {[%clk 0:01:33.3]} 23... Rhf8
{[%clk 0:00:36.2]} 24. Nf4 {[%clk 0:01:31.9]} 24... Kh7 {[%clk 0:00:27.1]} 25.
Nxh5 {[%clk 0:01:26.2]} 25... Qxd4 {[%clk 0:00:25]} 26. Re1 {[%clk 0:01:08.5]}
26... Rc8 {[%clk 0:00:12.8]} 27. Nf4 {[%clk 0:00:51.6]} 27... Rc3 {[%clk
0:00:05.5]} 28. Rxc3 {[%clk 0:00:41.8]} 28... Qxc3 {[%clk 0:00:06.4]} 29. Re3
{[%clk 0:00:41.9]} 29... Qa1+ {[%clk 0:00:05.4]} 30. Kh2 {[%clk 0:00:41.9]}
30... Kg7 {[%clk 0:00:05]} 31. h5 {[%clk 0:00:37.8]} 31... Rh8 {[%clk
0:00:05.1]} 32. g4 {[%clk 0:00:36.4]} 32... Qd4 {[%clk 0:00:03.6]} 33. Kg2
{[%clk 0:00:34.4]} 33... Kf8 {[%clk 0:00:02.3]} 34. Qd8+ {[%clk 0:00:33]} 34...
Kg7 {[%clk 0:00:02.1]} 35. Nxe6+ {[%clk 0:00:32.3]} 35... fxe6 {[%clk
0:00:02.1]} 36. Qxd7+ {[%clk 0:00:32.3]} 36... Kh6 {[%clk 0:00:02.9]} 37. Qxe6
{[%clk 0:00:32.7]} 37... Rg8 {[%clk 0:00:02.7]} 38. Rf3 {[%clk 0:00:27.2]} 38...
Rg7 {[%clk 0:00:01.9]} 39. Rf8 {[%clk 0:00:24.4]} 39... Qe4+ {[%clk 0:00:01.8]}
40. Kg3 {[%clk 0:00:24.7]} 40... Qd3+ {[%clk 0:00:01.8]} 41. f3 {[%clk
0:00:24.9]} 41... Qd1 {[%clk 0:00:01.1]} 42. Rh8+ {[%clk 0:00:24.4]} 42... Kg5
{[%clk 0:00:01.5]} 43. Qf6# {[%clk 0:00:24.4]} 1-0

[Event "Early-Titled-Tuesday-Blitz-November-28-2023"]
[Site "Chess.com"]
[Date "2023.11.28"]
[Round "6"]
[White "sergeikim"]
[Black "Kostukov_Alex"]
[Result "1-0"]
[WhiteElo "2588"]
[BlackElo "2405"]
[TimeControl "180+1"]
[EndTime "9:13:18 PST"]
[Termination "sergeikim won on time"]

1. d4 {[%clk 0:03:00.9]} 1... g6 {[%clk 0:02:57.6]} 2. c4 {[%clk 0:03:01]} 2...
Bg7 {[%clk 0:02:58.2]} 3. Nc3 {[%clk 0:03:01.1]} 3... d6 {[%clk 0:02:58.8]} 4.
e4 {[%clk 0:03:01.2]} 4... e5 {[%clk 0:02:59.4]} 5. Nge2 {[%clk 0:03:01.3]} 5...
exd4 {[%clk 0:02:59.3]} 6. Nxd4 {[%clk 0:03:01.3]} 6... Nc6 {[%clk 0:03:00.2]}
7. Nxc6 {[%clk 0:03:00.1]} 7... bxc6 {[%clk 0:03:01.1]} 8. g3 {[%clk 0:02:52.1]}
8... Ne7 {[%clk 0:02:55]} 9. Bg2 {[%clk 0:02:52.2]} 9... O-O {[%clk 0:02:54.6]}
10. O-O {[%clk 0:02:52.1]} 10... Be6 {[%clk 0:02:48.1]} 11. Qe2 {[%clk
0:02:49.3]} 11... Rb8 {[%clk 0:02:44.3]} 12. Rd1 {[%clk 0:02:47.5]} 12... c5
{[%clk 0:02:43.7]} 13. Nd5 {[%clk 0:02:44]} 13... Nc6 {[%clk 0:02:41]} 14. Rb1
{[%clk 0:02:32.1]} 14... Nd4 {[%clk 0:02:37.1]} 15. Qd3 {[%clk 0:02:31.4]} 15...
Bxd5 {[%clk 0:02:36.8]} 16. cxd5 {[%clk 0:02:24.2]} 16... f5 {[%clk 0:02:21]}
17. Be3 {[%clk 0:02:21.6]} 17... fxe4 {[%clk 0:02:19.4]} 18. Qxe4 {[%clk
0:02:17.1]} 18... Rb4 {[%clk 0:02:09.6]} 19. Kh1 {[%clk 0:02:11.4]} 19... Nf5
{[%clk 0:01:51]} 20. Qe6+ {[%clk 0:02:09.2]} 20... Kh8 {[%clk 0:01:50.8]} 21.
Bd2 {[%clk 0:01:40.1]} 21... Re8 {[%clk 0:01:15.7]} 22. Qf7 {[%clk 0:01:35.1]}
22... Rf8 {[%clk 0:01:09.5]} 23. Qe6 {[%clk 0:01:34.4]} 23... Rxb2 {[%clk
0:01:07.2]} 24. Rxb2 {[%clk 0:01:32.2]} 24... Bxb2 {[%clk 0:01:08.1]} 25. Qe2
{[%clk 0:01:30.1]} 25... Bd4 {[%clk 0:01:06.3]} 26. f4 {[%clk 0:01:27]} 26...
Re8 {[%clk 0:01:05.3]} 27. Qa6 {[%clk 0:01:26.6]} 27... Ne3 {[%clk 0:00:56.4]}
28. Bxe3 {[%clk 0:01:22]} 28... Rxe3 {[%clk 0:00:56.4]} 29. Qxa7 {[%clk
0:01:21.6]} 29... Qe7 {[%clk 0:00:55.8]} 30. Qa6 {[%clk 0:01:14.9]} 30... Re2
{[%clk 0:00:45.5]} 31. a4 {[%clk 0:00:59.8]} 31... Kg7 {[%clk 0:00:35]} 32. Qd3
{[%clk 0:00:55.7]} 32... h5 {[%clk 0:00:24.1]} 33. f5 {[%clk 0:00:52.7]} 33...
Re1+ {[%clk 0:00:21.7]} 34. Rxe1 {[%clk 0:00:51.5]} 34... Qxe1+ {[%clk
0:00:21.4]} 35. Qf1 {[%clk 0:00:46]} 35... Bc3 {[%clk 0:00:01.3]} 36. fxg6
{[%clk 0:00:35.9]} 36... Kxg6 {[%clk 0:00:02.2]} 37. Bh3 {[%clk 0:00:33.1]}
37... Qxf1+ {[%clk 0:00:01.2]} 38. Bxf1 {[%clk 0:00:33.1]} 38... Kf6 {[%clk
0:00:01.9]} 39. Be2 {[%clk 0:00:30.1]} 39... Ke5 {[%clk 0:00:01.3]} 40. Bxh5
{[%clk 0:00:29.8]} 40... Kxd5 {[%clk 0:00:01.4]} 41. Bd1 {[%clk 0:00:26.7]}
41... Kc4 {[%clk 0:00:01.8]} 42. h4 {[%clk 0:00:26.6]} 1-0

[Event "Early-Titled-Tuesday-Blitz-November-28-2023"]
[Site "Chess.com"]
[Date "2023.11.28"]
[Round "6"]
[White "tylityli"]
[Black "LimeInTheCoconut"]
[Result "1-0"]
[WhiteElo "2276"]
[BlackElo "2390"]
[TimeControl "180+1"]
[EndTime "9:13:18 PST"]
[Termination "tylityli won on time"]

1. d4 {[%clk 0:03:00.9]} 1... g6 {[%clk 0:02:57.2]} 2. c4 {[%clk 0:03:00.5]}
2... Bg7 {[%clk 0:02:57.2]} 3. e4 {[%clk 0:02:58.6]} 3... d6 {[%clk 0:02:57.1]}
4. Nc3 {[%clk 0:02:55.2]} 4... Nc6 {[%clk 0:02:57.5]} 5. d5 {[%clk 0:02:51.3]}
5... Nd4 {[%clk 0:02:57.2]} 6. Be3 {[%clk 0:02:50.8]} 6... e5 {[%clk 0:02:56.6]}
7. Nge2 {[%clk 0:02:50.2]} 7... Nxe2 {[%clk 0:02:53.7]} 8. Bxe2 {[%clk
0:02:49.5]} 8... f5 {[%clk 0:02:54.2]} 9. exf5 {[%clk 0:02:44.6]} 9... gxf5
{[%clk 0:02:55.1]} 10. Bh5+ {[%clk 0:02:44.2]} 10... Kf8 {[%clk 0:02:55.5]} 11.
f4 {[%clk 0:02:44.4]} 11... e4 {[%clk 0:02:55.4]} 12. O-O {[%clk 0:02:41]} 12...
Nf6 {[%clk 0:02:55.7]} 13. Be2 {[%clk 0:02:40.3]} 13... h5 {[%clk 0:02:56.3]}
14. Bd4 {[%clk 0:01:58.1]} 14... Ng4 {[%clk 0:02:49.8]} 15. h3 {[%clk
0:01:51.6]} 15... Qh4 {[%clk 0:02:36.9]} 16. Bxg7+ {[%clk 0:01:48.9]} 16... Kxg7
{[%clk 0:02:37.8]} 17. Qd4+ {[%clk 0:01:47.2]} 17... Kg8 {[%clk 0:02:30.7]} 18.
Nxe4 {[%clk 0:01:15.7]} 18... fxe4 {[%clk 0:02:23]} 19. Qxe4 {[%clk 0:01:16.6]}
19... Kg7 {[%clk 0:01:01.2]} 20. f5 {[%clk 0:01:08.3]} 20... Qg3 {[%clk
0:00:02.2]} 21. hxg4 {[%clk 0:01:03.2]} 21... hxg4 {[%clk 0:00:03.1]} 22. Qxg4+
{[%clk 0:01:02.9]} 22... Qxg4 {[%clk 0:00:02.9]} 23. Bxg4 {[%clk 0:01:03.8]}
23... Kf6 {[%clk 0:00:03.1]} 24. Rae1 {[%clk 0:01:00.3]} 24... Bd7 {[%clk
0:00:03.5]} 25. Bh3 {[%clk 0:00:59.5]} 25... Rag8 {[%clk 0:00:04.1]} 26. Re3
{[%clk 0:00:56.7]} 26... Rg5 {[%clk 0:00:03.4]} 27. Rff3 {[%clk 0:00:53.6]}
27... Rh4 {[%clk 0:00:03.5]} 28. b3 {[%clk 0:00:52.7]} 28... Rd4 {[%clk
0:00:03.4]} 29. Kf2 {[%clk 0:00:51.8]} 29... Rd2+ {[%clk 0:00:03.5]} 30. Re2
{[%clk 0:00:51.8]} 30... Rd1 {[%clk 0:00:03.9]} 31. Rg3 {[%clk 0:00:43.3]} 31...
Rh5 {[%clk 0:00:03.6]} 32. Rg6+ {[%clk 0:00:42]} 32... Kf7 {[%clk 0:00:04.3]}
33. Bg4 {[%clk 0:00:31.5]} 33... Rh4 {[%clk 0:00:03.3]} 34. Kg3 {[%clk
0:00:30.3]} 34... Rxg4+ {[%clk 0:00:01.6]} 35. Kxg4 {[%clk 0:00:24.7]} 35... Rf1
{[%clk 0:00:01.8]} 36. Rg5 {[%clk 0:00:22.5]} 1-0

[Event "Early-Titled-Tuesday-Blitz-November-28-2023"]
[Site "Chess.com"]
[Date "2023.11.28"]
[Round "6"]
[White "Artem_Sadovsky"]
[Black "Hasangatin_Ramil"]
[Result "1/2-1/2"]
[WhiteElo "2525"]
[BlackElo "2694"]
[TimeControl "180+1"]
[EndTime "9:13:19 PST"]
[Termination "Game drawn by repetition"]

1. Nf3 {[%clk 0:02:56.1]} 1... d5 {[%clk 0:02:59.9]} 2. e3 {[%clk 0:02:55.6]}
2... Nf6 {[%clk 0:02:58.6]} 3. c4 {[%clk 0:02:56.2]} 3... c6 {[%clk 0:02:58.9]}
4. b3 {[%clk 0:02:56.7]} 4... g6 {[%clk 0:02:59]} 5. Bb2 {[%clk 0:02:57.3]} 5...
Bg7 {[%clk 0:02:59.6]} 6. Be2 {[%clk 0:02:57.9]} 6... O-O {[%clk 0:03:00.2]} 7.
O-O {[%clk 0:02:58.6]} 7... Bg4 {[%clk 0:03:00.2]} 8. d3 {[%clk 0:02:55.7]} 8...
Nbd7 {[%clk 0:02:58]} 9. Nbd2 {[%clk 0:02:56]} 9... Re8 {[%clk 0:02:57.1]} 10.
h3 {[%clk 0:02:50.7]} 10... Bxf3 {[%clk 0:02:56.7]} 11. Bxf3 {[%clk 0:02:44.1]}
11... e5 {[%clk 0:02:51.6]} 12. cxd5 {[%clk 0:02:44.6]} 12... cxd5 {[%clk
0:02:50.9]} 13. Rc1 {[%clk 0:02:27.7]} 13... Qa5 {[%clk 0:02:46]} 14. a3 {[%clk
0:02:25.5]} 14... Rac8 {[%clk 0:02:42.6]} 15. b4 {[%clk 0:02:18.2]} 15... Qb5
{[%clk 0:02:40.3]} 16. Qb3 {[%clk 0:02:16.5]} 16... a5 {[%clk 0:02:37.3]} 17.
Rxc8 {[%clk 0:01:58.5]} 17... Rxc8 {[%clk 0:02:34.5]} 18. Rc1 {[%clk 0:01:51.6]}
18... Rxc1+ {[%clk 0:02:32.2]} 19. Bxc1 {[%clk 0:01:52.5]} 19... axb4 {[%clk
0:02:27.4]} 20. axb4 {[%clk 0:01:49.3]} 20... Bf8 {[%clk 0:02:26.3]} 21. Ba3
{[%clk 0:01:42.2]} 21... Nb6 {[%clk 0:02:23.6]} 22. Nb1 {[%clk 0:01:30.1]} 22...
Qa4 {[%clk 0:02:13.2]} 23. Qxa4 {[%clk 0:01:11.1]} 23... Nxa4 {[%clk 0:02:12.8]}
24. b5 {[%clk 0:01:12]} 24... Bxa3 {[%clk 0:02:03]} 25. Nxa3 {[%clk 0:01:12.9]}
25... b6 {[%clk 0:01:59.8]} 26. d4 {[%clk 0:01:09.8]} 26... e4 {[%clk
0:01:46.8]} 27. Bd1 {[%clk 0:01:06.2]} 27... Nc3 {[%clk 0:01:45.9]} 28. Bb3
{[%clk 0:01:06.5]} 28... Ne8 {[%clk 0:01:45.9]} 29. Kf1 {[%clk 0:01:05.6]} 29...
Nc7 {[%clk 0:01:43.1]} 30. Ke1 {[%clk 0:01:04.1]} 30... f5 {[%clk 0:01:37.5]}
31. Kd2 {[%clk 0:01:03.9]} 31... N3xb5 {[%clk 0:01:37.6]} 32. Bxd5+ {[%clk
0:00:56]} 32... Kf8 {[%clk 0:01:35.6]} 33. Nxb5 {[%clk 0:00:50.2]} 33... Nxb5
{[%clk 0:01:36.5]} 34. f3 {[%clk 0:00:30.6]} 34... Nd6 {[%clk 0:01:36.4]} 35.
Kc3 {[%clk 0:00:17]} 35... Ke7 {[%clk 0:01:36]} 36. Kb4 {[%clk 0:00:17.2]} 36...
Kf6 {[%clk 0:01:35.8]} 37. Kc3 {[%clk 0:00:11.7]} 37... Kg5 {[%clk 0:01:35.9]}
38. fxe4 {[%clk 0:00:10]} 38... fxe4 {[%clk 0:01:35.1]} 39. g3 {[%clk
0:00:07.8]} 39... h5 {[%clk 0:01:34.7]} 40. Kb4 {[%clk 0:00:02.9]} 40... h4
{[%clk 0:01:30.9]} 41. g4 {[%clk 0:00:02.8]} 41... Kf6 {[%clk 0:01:30.9]} 42.
Kc3 {[%clk 0:00:02.8]} 42... Ke7 {[%clk 0:01:30.4]} 43. Kb4 {[%clk 0:00:03]}
43... Kd7 {[%clk 0:01:30.8]} 44. Kc3 {[%clk 0:00:01.9]} 44... Kc7 {[%clk
0:01:31.2]} 45. g5 {[%clk 0:00:02.2]} 45... Kd7 {[%clk 0:01:24.3]} 46. Kb4
{[%clk 0:00:02.7]} 46... Ke7 {[%clk 0:01:24.8]} 47. Kc3 {[%clk 0:00:02.7]} 47...
Kf8 {[%clk 0:01:21.9]} 48. Kb4 {[%clk 0:00:03.1]} 48... Kg7 {[%clk 0:01:19.1]}
49. Kb3 {[%clk 0:00:03.7]} 49... Kf8 {[%clk 0:01:05.9]} 50. Kb4 {[%clk
0:00:03.7]} 50... Ke8 {[%clk 0:01:06.1]} 51. Kc3 {[%clk 0:00:04.3]} 51... Kd8
{[%clk 0:01:06.5]} 52. Kb4 {[%clk 0:00:04.9]} 52... Kc7 {[%clk 0:01:07]} 53. Kc3
{[%clk 0:00:05.4]} 53... Kb8 {[%clk 0:00:56.9]} 54. Be6 {[%clk 0:00:05.3]} 54...
Kc7 {[%clk 0:00:48.7]} 55. Bd5 {[%clk 0:00:05.7]} 1/2-1/2

[Event "Early-Titled-Tuesday-Blitz-November-28-2023"]
[Site "Chess.com"]
[Date "2023.11.28"]
[Round "6"]
[White "HanSchut"]
[Black "abelmat"]
[Result "0-1"]
[WhiteElo "2274"]
[BlackElo "1969"]
[TimeControl "180+1"]
[EndTime "9:13:20 PST"]
[Termination "abelmat won on time"]

1. e4 {[%clk 0:02:59.4]} 1... e6 {[%clk 0:02:59.8]} 2. d4 {[%clk 0:02:59.1]}
2... d5 {[%clk 0:03:00.1]} 3. e5 {[%clk 0:02:59.8]} 3... c5 {[%clk 0:03:00]} 4.
c3 {[%clk 0:03:00.2]} 4... Bd7 {[%clk 0:03:00.1]} 5. Nf3 {[%clk 0:02:54.7]} 5...
Qb6 {[%clk 0:02:59.9]} 6. Bd3 {[%clk 0:02:54.8]} 6... cxd4 {[%clk 0:02:59.8]} 7.
cxd4 {[%clk 0:02:54.7]} 7... Bb5 {[%clk 0:02:59.9]} 8. Bxb5+ {[%clk 0:02:51.7]}
8... Qxb5 {[%clk 0:03:00.2]} 9. Nc3 {[%clk 0:02:52.4]} 9... Qb6 {[%clk
0:03:00.3]} 10. O-O {[%clk 0:02:49.6]} 10... Nc6 {[%clk 0:03:00]} 11. Rb1 {[%clk
0:02:46.9]} 11... Nge7 {[%clk 0:02:59.1]} 12. Be3 {[%clk 0:02:39.1]} 12... Nf5
{[%clk 0:02:58.2]} 13. Qd2 {[%clk 0:02:31.9]} 13... Be7 {[%clk 0:02:51.8]} 14.
Rfd1 {[%clk 0:01:47.3]} 14... O-O {[%clk 0:02:49]} 15. Bf4 {[%clk 0:01:44.9]}
15... Na5 {[%clk 0:02:21.4]} 16. g4 {[%clk 0:01:35.2]} 16... Nc4 {[%clk
0:02:12.6]} 17. Qe2 {[%clk 0:01:24.8]} 17... Nh4 {[%clk 0:01:53.1]} 18. Nxh4
{[%clk 0:01:24.5]} 18... Bxh4 {[%clk 0:01:52.7]} 19. g5 {[%clk 0:01:25.4]} 19...
h6 {[%clk 0:01:04.5]} 20. Qh5 {[%clk 0:01:10.7]} 20... hxg5 {[%clk 0:00:49]} 21.
Rd3 {[%clk 0:00:59.4]} 21... f6 {[%clk 0:00:20.3]} 22. Bg3 {[%clk 0:00:30.8]}
22... fxe5 {[%clk 0:00:16.3]} 23. dxe5 {[%clk 0:00:17.8]} 23... Nxe5 {[%clk
0:00:13.2]} 24. Bxe5 {[%clk 0:00:07.2]} 24... Qxf2+ {[%clk 0:00:11.1]} 25. Kh1
{[%clk 0:00:07.7]} 25... Rf7 {[%clk 0:00:07.4]} 26. Rbd1 {[%clk 0:00:03.2]}
26... Raf8 {[%clk 0:00:07.2]} 27. R3d2 {[%clk 0:00:03.5]} 27... Qf5 {[%clk
0:00:06.6]} 28. Bg3 {[%clk 0:00:03]} 28... Bxg3 {[%clk 0:00:06.5]} 29. hxg3
{[%clk 0:00:02.5]} 29... d4 {[%clk 0:00:06]} 0-1

[Event "Early-Titled-Tuesday-Blitz-November-28-2023"]
[Site "Chess.com"]
[Date "2023.11.28"]
[Round "6"]
[White "atalz0"]
[Black "MKlose11"]
[Result "1-0"]
[WhiteElo "2494"]
[BlackElo "2606"]
[TimeControl "180+1"]
[EndTime "9:13:22 PST"]
[Termination "atalz0 won by checkmate"]

1. d4 {[%clk 0:03:00.9]} 1... Nf6 {[%clk 0:02:59.7]} 2. c4 {[%clk 0:03:00.1]}
2... c5 {[%clk 0:03:00]} 3. d5 {[%clk 0:03:00.2]} 3... b5 {[%clk 0:03:00.3]} 4.
cxb5 {[%clk 0:02:59.4]} 4... a6 {[%clk 0:03:00.7]} 5. f3 {[%clk 0:02:57.5]} 5...
g6 {[%clk 0:02:57.4]} 6. e4 {[%clk 0:02:57.6]} 6... d6 {[%clk 0:02:57.9]} 7. Na3
{[%clk 0:02:57.9]} 7... Bg7 {[%clk 0:02:58.2]} 8. Ne2 {[%clk 0:02:58.5]} 8...
O-O {[%clk 0:02:58.9]} 9. Nc3 {[%clk 0:02:58.9]} 9... e6 {[%clk 0:02:57.8]} 10.
Bc4 {[%clk 0:02:57.8]} 10... exd5 {[%clk 0:02:53.9]} 11. Nxd5 {[%clk 0:02:58]}
11... axb5 {[%clk 0:02:42.9]} 12. Nxb5 {[%clk 0:02:56.5]} 12... Nxd5 {[%clk
0:02:42.4]} 13. Bxd5 {[%clk 0:02:30.1]} 13... Qa5+ {[%clk 0:02:11.4]} 14. Bd2
{[%clk 0:02:23.6]} 14... Qxb5 {[%clk 0:02:11.6]} 15. Bxa8 {[%clk 0:02:23.9]}
15... Ba6 {[%clk 0:01:58.5]} 16. Rb1 {[%clk 0:01:26.8]} 16... Nd7 {[%clk
0:01:48.1]} 17. a4 {[%clk 0:01:16.8]} 17... Qb6 {[%clk 0:01:32.4]} 18. Bd5
{[%clk 0:01:16.1]} 18... Ne5 {[%clk 0:01:32.5]} 19. Kf2 {[%clk 0:01:05.5]} 19...
Nd3+ {[%clk 0:01:26.5]} 20. Kg3 {[%clk 0:01:01.7]} 20... Qd8 {[%clk 0:01:26.7]}
21. h4 {[%clk 0:00:54.9]} 21... Bd4 {[%clk 0:01:16.7]} 22. Rf1 {[%clk
0:00:43.5]} 22... Nxb2 {[%clk 0:00:55.1]} 23. Qb3 {[%clk 0:00:34.6]} 23... Bxf1
{[%clk 0:00:39.9]} 24. Rxf1 {[%clk 0:00:35.5]} 24... Qc7 {[%clk 0:00:25.7]} 25.
Rc1 {[%clk 0:00:30]} 25... Rb8 {[%clk 0:00:19.7]} 26. Qa3 {[%clk 0:00:21.4]}
26... Qa7 {[%clk 0:00:17.7]} 27. a5 {[%clk 0:00:19.7]} 27... Qa6 {[%clk
0:00:18.1]} 28. Qa2 {[%clk 0:00:16.8]} 28... Nd3 {[%clk 0:00:16.4]} 29. Bxf7+
{[%clk 0:00:15.7]} 29... Kg7 {[%clk 0:00:15.6]} 30. Bc4 {[%clk 0:00:12.4]} 30...
Nxc1 {[%clk 0:00:15.7]} 31. Bxc1 {[%clk 0:00:12.7]} 31... Qc8 {[%clk 0:00:14.1]}
32. Bf4 {[%clk 0:00:12.5]} 32... Be5 {[%clk 0:00:13.7]} 33. Bxe5+ {[%clk
0:00:11.7]} 33... dxe5 {[%clk 0:00:14.6]} 34. a6 {[%clk 0:00:11.7]} 34... Ra8
{[%clk 0:00:13.9]} 35. Qa5 {[%clk 0:00:11.3]} 35... Ra7 {[%clk 0:00:12.8]} 36.
Qb6 {[%clk 0:00:11.3]} 36... Qc7 {[%clk 0:00:13.4]} 37. Qe6 {[%clk 0:00:11.1]}
37... Qe7 {[%clk 0:00:13.7]} 38. Qg8+ {[%clk 0:00:10.9]} 38... Kh6 {[%clk
0:00:13.5]} 39. Kh3 {[%clk 0:00:11.2]} 39... Qd7+ {[%clk 0:00:13.3]} 40. g4
{[%clk 0:00:11.2]} 40... Qe7 {[%clk 0:00:14.2]} 41. g5+ {[%clk 0:00:11.2]} 41...
Kh5 {[%clk 0:00:13.9]} 42. Be6 {[%clk 0:00:10.2]} 42... Rxa6 {[%clk 0:00:09.6]}
43. Bg4# {[%clk 0:00:10.3]} 1-0